Cogmind - Beta 13 @@@ ROGUE MODE // 2024.05.17 @ 16:12:22 Player: GayPredator Result: Self-destructed Performance ------------- Evolutions (2) 1000 Regions Visited (5) 1000 Robots Destroyed (15) 75 Value Destroyed (423) 423 Prototype IDs (2) 40 Alien Tech Used (0) 0 Bonus (357) 357 TOTAL SCORE: 2895 Bonus ------- Follower Combat Kills 72 Aligned with FarCom 300 Friendly Fire -15 Cogmind --------- Core Integrity 488/550 Matter 290/300 Energy 271/275 System Corruption 0% Temperature Cool (3) Movement Walking (100) Location -8/Materials Parts ------- > --- POWER (1) -------- Deuterium Engine > --- PROPULSION (3) --- Aluminum Leg Potential Leg Potential Leg > --- UTILITY (4) ------ Improved Heat Sink Large Storage Unit Improved Terrain Scanner Insulated Plating > --- WEAPON (3) ------- Gatling Laser Gatling Laser Gatling Laser > --- INVENTORY (15) --- Nuclear Core Wheel Wheel Improved Terrain Scanner Seismic Detector Recoil Stabilizer High-powered Tractor Beam Gatling Laser Heavy Particle Cannon Datajack Katana Peak State ------------ > --- POWER ------------ Deuterium Engine > --- PROPULSION ------- Aluminum Leg Potential Leg Potential Leg > --- UTILITY ---------- Improved Heat Sink Large Storage Unit Improved Terrain Scanner Insulated Plating > --- WEAPON ----------- Gatling Laser Gatling Laser Gatling Laser > --- INVENTORY -------- Nuclear Core Wheel Wheel Seismic Detector Recoil Stabilizer High-powered Tractor Beam Gatling Laser Heavy Particle Cannon Datajack Katana [Rating: 48] Favorites ----------- Power Ion Engine Engine Ion Engine Power Core Nuclear Core Propulsion Light Treads Treads Light Treads Leg Potential Leg Utility Improved Terrain Scanner Device Improved Terrain Scanner Storage Large Storage Unit Hackware Hacking Suite Protection Insulated Plating Weapon Light Assault Rifle Energy Gun Gatling Laser Energy Cannon Heavy Particle Cannon Ballistic Gun Light Assault Rifle Slashing Weapon Katana Build | -11 -10 -10 -10 -9 -8 ------- Run | Yrd Mat Min Exi Min Mat Slots Evolved 4 | . . . . . 4 Power . | . . . . . . Propulsion 1 | . . . . . 1 Utility 2 | . . . . . 2 Weapon 1 | . . . . . 1 Parts Attached 27 | 7 . . 3 . 17 Power 3 | 1 . . . . 2 Engine 2 | 1 . . . . 1 Core 1 | . . . . . 1 Reactor . | . . . . . . Propulsion 5 | 2 . . 2 . 1 Treads 2 | 2 . . . . . Leg 3 | . . . 2 . 1 Wheel . | . . . . . . Hover . | . . . . . . Flight . | . . . . . . Utility 7 | 2 . . 1 . 4 Device 3 | 1 . . . . 2 Storage 2 | 1 . . 1 . . Processor . | . . . . . . Hackware 1 | . . . . . 1 Protection 1 | . . . . . 1 Artifact . | . . . . . . Weapon 12 | 2 . . . . 10 Energy Gun 5 | . . . . . 5 Energy Cannon 2 | . . . . . 2 Ballistic Gun 2 | 2 . . . . . Ballistic Cannon . | . . . . . . Launcher . | . . . . . . Special Weapon . | . . . . . . Impact Weapon . | . . . . . . Slashing Weapon 3 | . . . . . 3 Piercing Weapon . | . . . . . . Special Melee Weapon . | . . . . . . Unidentified Prototypes 2 | . . . 1 . 1 Parts Lost 1 | . . . . . 1 Power . | . . . . . . Propulsion . | . . . . . . Utility 1 | . . . . . 1 Weapon . | . . . . . . Highest Loss Streak 1 | . . . . . 1 To Critical Strikes . | . . . . . . Average Slot Usage (%) 99 | . 100 100 100 100 97 Engine 11 | . 14 14 14 14 6 Treads 14 | . 28 28 20 . . Leg 13 | . . . 7 28 27 Device 15 | . 14 14 14 14 18 Storage 12 | . 14 14 14 14 9 Protection 1 | . . . . . 5 Energy Gun 5 | . . . . . 20 Ballistic Gun 20 | . 28 28 28 28 1 Naked Turns . | . . . . . . Heaviest Build 46 | 13 13 13 28 28 46 Greatest Support 70 | 40 40 40 60 60 70 Greatest Overweight (x) 1 | . . . 1 . . Average Overweight (x) . | . . . . . . Largest Inventory Capacity 15 | 8 8 8 15 15 15 Average Capacity 11 | 7 8 8 12 15 15 Most Carried 11 | 4 5 5 6 8 11 Average Carried 6 | 2 4 5 5 7 8 Final Capacity 15 | 8 8 8 15 15 15 Final Carried 11 | 4 5 5 5 8 11 Class Distribution -------------------- 59% | Mutant 33% | Skirmisher 7% | Assassin Dominant Class ---------------- Mutant | -10/Materials Mutant | -10/Mines Mutant | -10/Exiles Skirmisher | -9/Mines Skirmisher | -8/Materials Resources | -11 -10 -10 -10 -9 -8 ----------- Run | Yrd Mat Min Exi Min Mat Matter Collected 495 | 284 . 10 . 41 160 Remotely 140 | . . . . . 140 Salvage Created 555 | 104 . 62 . 92 297 Parts 34 | 7 . 7 . 6 14 Haulers Intercepted . | . . . . . . Recyclers Shooed 1 | 1 . . . . . Parts Field Recycled . | . . . . . . Retrieved Matter . | . . . . . . Parts Self-Destructed . | . . . . . . Prevented . | . . . . . . Kills | -11 -10 -10 -10 -9 -8 ------- Run | Yrd Mat Min Exi Min Mat Combat Hostiles Destroyed 11 | . . 4 . 2 5 Guns 11 | . . 4 . 2 5 Classes Destroyed 7 | 2 . 1 . 2 2 Tunneler 1 | 1 . . . . . Recycler 1 | 1 . . . . . Watcher 2 | . . . . . 2 Swarmer 4 | . . 4 . . . Grunt 3 | . . . . 1 2 Duelist 1 | . . . . 1 . Sentry 3 | . . . . . 3 Best Kill Streak 2 | 2 . 2 . 2 2 Combat Bots Only 2 | . . 2 . 2 2 Max Kills in Single Turn 1 | 1 . 1 . 1 1 Gunslinging . | . . . . . . Exploded . | . . . . . . Melee . | . . . . . . Uniques/NPCs Destroyed . | . . . . . . Combat | -11 -10 -10 -10 -9 -8 -------- Run | Yrd Mat Min Exi Min Mat Hostile Shots Fired 24 | . . 15 . . 9 Missed 6 | . . 4 . . 2 Damage Taken 210 | . . 92 . 11 107 Core 72 | . . 10 . . 62 Absorbed by Shields . | . . . . . . Core Remaining (%) 98 | 100 . . . 96 . Volleys Fired 32 | 7 . 6 . 8 11 Largest 3 | 2 . 2 . 2 3 Hottest 240 | 40 . 40 . 40 240 Shots Fired 74 | 14 . 12 . 16 32 Gun 72 | 14 . 12 . 16 30 Cannon 2 | . . . . . 2 Launcher . | . . . . . . Special . | . . . . . . Kinetic 42 | 14 . 12 . 16 . Thermal 32 | . . . . . 32 Explosive . | . . . . . . Electromagnetic . | . . . . . . Robot Hit Streak 9 | 8 . 4 . 4 9 Robot Miss Streak 4 | 1 . 2 . 2 4 Penetration Max . | . . . . . . Secondary Targets 1 | . . 1 . . . Max Gunslinging Chain 1 | . . 1 . . . Shots Hit Robots 49 | 10 . 5 . 9 25 Core Hits 29 | 4 . 5 . 3 17 Critical Kills . | . . . . . . Critical Parts Destroyed . | . . . . . . Critical Strikes . | . . . . . . Melee Attacks 2 | . . . . . 2 Impact . | . . . . . . Slashing 2 | . . . . . 2 Piercing . | . . . . . . Sneak Attacks . | . . . . . . Combat Hostiles . | . . . . . . Follow-up Attacks . | . . . . . . Damage Inflicted 764 | 88 . 52 . 107 517 Guns 712 | 88 . 44 . 93 487 Cannons 25 | . . . . . 25 Explosions . | . . . . . . Melee . | . . . . . . Ramming 27 | . . 8 . 14 5 Kinetic 225 | 88 . 44 . 93 . Thermal 512 | . . . . . 512 Explosive . | . . . . . . Electromagnetic . | . . . . . . Impact . | . . . . . . Slashing . | . . . . . . Piercing . | . . . . . . Highest Corruption . | . . . . . . Average Corruption . | . . . . . . Corruption Purged . | . . . . . . Corruption Blocked . | . . . . . . Overload Shots . | . . . . . . Overflow Damage . | . . . . . . Projectiles . | . . . . . . Explosions . | . . . . . . Melee . | . . . . . . Knockbacks 1 | . . 1 . . . Impact 1 | . . 1 . . . Kinetic . | . . . . . . Secondary . | . . . . . . Self-Inflicted Damage . | . . . . . . Shots . | . . . . . . Rammed 2 | . . 2 . . . Targets Rammed 5 | . . 2 . 2 1 Kicked 3 | . . . . 2 1 Crushed . | . . . . . . Highest Temperature 356 | . . . . . 356 Average Temperature 138 | . . . . . 138 Received Heat Transfer 51 | . . . . 6 45 Effects 3 | . . . . . 3 Shutdowns 1 | . . . . . 1 Energy Bleed 2 | . . . . . 2 Siege Activations . | . . . . . . Robots Corrupted . | . . . . . . Combat Hostiles . | . . . . . . Parts Fried . | . . . . . . Impact Corruptions . | . . . . . . Robots Melted . | . . . . . . Combat Hostiles . | . . . . . . Parts Melted 2 | . . . . . 2 Heat Transferred 1137 | . . . . . 1137 Parts Sabotaged . | . . . . . . Parts Stolen . | . . . . . . Parts Stripped . | . . . . . . Power Chain Reactions . | . . . . . . Alert | -11 -10 -10 -10 -9 -8 ------- Run | Yrd Mat Min Exi Min Mat Peak Influence 291 | 10 6 197 . 53 291 Initial 20 | . 6 1 . . 20 Average 94 | 4 6 92 . 37 164 Maximum Alert Level 1 | . . . . . 1 Low Security (%) 85 | 100 100 100 . 100 58 Level 1 14 | . . . . . 41 Level 2 . | . . . . . . Level 3 . | . . . . . . Level 4 . | . . . . . . Level 5 . | . . . . . . High Security . | . . . . . . Max Security . | . . . . . . Squads Dispatched 2 | . . . . . 2 Investigation . | . . . . . . Extermination . | . . . . . . Reinforcement 2 | . . . . . 2 Assault . | . . . . . . Garrison . | . . . . . . Intercept . | . . . . . . Searches Triggered . | . . . . . . Construction Impeded . | . . . . . . Haulers Reinforced . | . . . . . . Active Scanning Responses . | . . . . . . Cargo Convoy Interrupts . | . . . . . . Stealth | -11 -10 -10 -10 -9 -8 --------- Run | Yrd Mat Min Exi Min Mat Distress Signals 1 | . . . . . 1 Communications Jammed . | . . . . . . Distress Signals . | . . . . . . Times Spotted 22 | . . 8 . 3 11 Peak Tracking Total 3 | . . 3 . 3 3 Tactical Retreats 3 | . . 2 . . 1 Traps | -11 -10 -10 -10 -9 -8 ------- Run | Yrd Mat Min Exi Min Mat Traps Triggered . | . . . . . . Indirectly . | . . . . . . Trap Hack Attempts . | . . . . . . Triggered . | . . . . . . Disarmed . | . . . . . . Reprogrammed . | . . . . . . Reused . | . . . . . . Traps Extracted . | . . . . . . Installed . | . . . . . . Triggered . | . . . . . . Machines | -11 -10 -10 -10 -9 -8 ---------- Run | Yrd Mat Min Exi Min Mat Machines Disabled 1 | . . . . . 1 Max in Single Turn 1 | . . . . . 1 Machines Repaired . | . . . . . . Machines Dismantled . | . . . . . . Machines Sabotaged . | . . . . . . Overloaded Fab Kills . | . . . . . . Hacking | -11 -10 -10 -10 -9 -8 --------- Run | Yrd Mat Min Exi Min Mat Machines Accessed 4 | . . . 1 . 3 Terminals 2 | . . . . . 2 Fabricators . | . . . . . . Repair Stations . | . . . . . . Recycling Units . | . . . . . . Scanalyzers 1 | . . . . . 1 Garrison Access . | . . . . . . Total Hacks 7 | . . . 1 . 6 Successful 6 | . . . 1 . 5 Failed 1 | . . . . . 1 Catastrophic . | . . . . . . Database Lockouts . | . . . . . . Manual 5 | . . . 1 . 4 Terminals 4 | . . . . . 4 Fabricators . | . . . . . . Repair Stations . | . . . . . . Recycling Units . | . . . . . . Scanalyzers 2 | . . . . . 2 Garrison Access . | . . . . . . Terminal Hacks 2 | . . . 1 . 1 Record 1 | . . . 1 . . Part Schematic 1 | . . . . . 1 Fabricator Hacks . | . . . . . . Repair Station Hacks . | . . . . . . Recycling Unit Hacks . | . . . . . . Scanalyzer 2 | . . . . . 2 Insert Component 1 | . . . . . 1 Analyze 1 | . . . . . 1 Garrison Access Hacks . | . . . . . . Unauthorized Hacks 2 | . . . . . 2 Terminals 2 | . . . . . 2 Botnet 2 | . . . . . 2 Fabricators . | . . . . . . Repair Stations . | . . . . . . Recycling Units . | . . . . . . Scanalyzers . | . . . . . . Garrison Access . | . . . . . . Data Cores Recovered . | . . . . . . Used . | . . . . . . Hacking Detections 3 | . . . . . 3 Full Trace Events . | . . . . . . Feedback Events . | . . . . . . Feedback Blocked . | . . . . . . Robot Schematics Acquired . | . . . . . . Robots Built . | . . . . . . Authchips . | . . . . . . Time . | . . . . . . Total Robot Build Rating . | . . . . . . Part Schematics Acquired 2 | . . . . . 2 Parts Built . | . . . . . . Authchips . | . . . . . . Time . | . . . . . . Total Part Build Rating . | . . . . . . Parts Repaired . | . . . . . . Time . | . . . . . . Parts Recycled . | . . . . . . Recycled Matter . | . . . . . . Retrieved Matter . | . . . . . . Retrieved Components . | . . . . . . Parts Scanalyzed 1 | . . . . . 1 Part Schematics Acquired 1 | . . . . . 1 Parts Damaged . | . . . . . . Bothacking | -11 -10 -10 -10 -9 -8 ------------ Run | Yrd Mat Min Exi Min Mat Used RIF Installer . | . . . . . . Robots Hacked . | . . . . . . Non-combat . | . . . . . . Combat . | . . . . . . Robot Hacks Applied . | . . . . . . Relay Couplers Released . | . . . . . . Fabnet Peak Effective % . | . . . . . . Robots Rewired . | . . . . . . Allies Hacked . | . . . . . . Hacks Repelled . | . . . . . . Allies | -11 -10 -10 -10 -9 -8 -------- Run | Yrd Mat Min Exi Min Mat Total Allies 3 | . . 3 . . . Largest Group 3 | . . 3 3 3 1 Highest-Rated Group 40 | . . 40 40 40 15 Highest-Rated Ally 16 | . . 16 16 16 15 Total Orders . | . . . . . . Ally Attacks 33 | . . 4 . 24 5 Total Damage 334 | . . 63 . 205 66 Kills 4 | . . 2 . 1 1 Allies Corrupted . | . . . . . . Allies Melted . | . . . . . . Intel | -11 -10 -10 -10 -9 -8 ------- Run | Yrd Mat Min Exi Min Mat Robot Analysis Total . | . . . . . . Derelict Logs Recovered 2 | . . 1 . 1 . Drone Launches . | . . . . . . Drone Recoveries . | . . . . . . Exploration | -11 -10 -10 -10 -9 -8 ------------- Run | Yrd Mat Min Exi Min Mat Turns Passed 1650 | 93 105 400 399 212 441 Spaces Moved 1051 | 39 64 232 274 182 260 Core 3 | 3 . . . . . Treads 507 | 36 64 232 175 . . Legs 541 | . . . 99 182 260 Wheels . | . . . . . . Hover . | . . . . . . Flight . | . . . . . . Fastest Speed 50 | 50 160 160 90 90 60 Average Speed 125 | 151 160 160 135 90 98 Slowest Speed 240 | 160 160 160 240 90 100 Overloaded Moves 7 | . . . . . 7 Propulsion Burnouts . | . . . . . . Robots Hopped . | . . . . . . Cave-ins Triggered . | . . . . . . Exploration Rate (%) 36 | 5 19 60 70 44 23 Regions Visited 5 Branch Regions 3 Pre-discovered Areas 2 | . . 1 1 . . Known Exits Taken . | . . . . . . Unknown Exits Taken 5 | 1 1 1 1 1 . Scrap Searched 2 | . . 1 . 1 . Spaces Dug 2 | . . . . . 2 Terrain Destroyed 2 | . . . . . 2 Melee 2 | . . . . . 2 Projectile . | . . . . . . AOE . | . . . . . . Terrain Rammed . | . . . . . . Walls Destroyed . | . . . . . . Machines Disabled . | . . . . . . Actions | -11 -10 -10 -10 -9 -8 --------- Run | Yrd Mat Min Exi Min Mat Total 1302 | 58 67 250 302 217 408 Wait 165 | 2 3 11 23 23 103 Move 1046 | 38 63 231 273 181 260 Hop . | . . . . . . Pick Up 12 | 4 1 . . 3 4 Fast Attach 18 | 7 . . 2 . 9 Attach 3 | . . . . . 3 Detach 4 | . . . . . 4 Swap 6 | . . . 1 . 5 Drop 9 | . . . 3 . 6 Fire 32 | 7 . 6 . 8 11 Melee 2 | . . . . . 2 Ram . | . . . . . . Kick 3 | . . . . 2 1 Crush 2 | . . 2 . . . Escape Stasis . | . . . . . . Rewire . | . . . . . . Trap . | . . . . . . Miscellaneous . | . . . . . . Route ------- -11/Scrapyard -10/Materials -10/Mines (discovered 2 exits: [*Mat] / *Exi) -10/Exiles -9/Mines -8/Materials History --------- Turn | Location | Event 33 | -11/Scrapyard | Discovered new exit (range 15) 94 | -11/Scrapyard | Entered Materials 172 | -10/Materials | Discovered new exit (range 9) 199 | -10/Materials | Entered Mines 304 | -10/Mines | Build established: Mutant 353 | -10/Mines | Learned location of Storage (-9) 374 | -10/Mines | Assisted by bots powering up and referring to "LRC-V3" 533 | -10/Mines | Discovered new exit (range 6) 591 | -10/Mines | Deemed a non-threat by the Exiles lab entrance 591 | -10/Mines | Discovered new exit (range 5) 599 | -10/Mines | Entered Exiles 599 | -10/Exiles | Accompanied by 3 allies 643 | -10/Exiles | Met 8R-AWN 667 | -10/Exiles | Met EX-HEX 752 | -10/Exiles | Met EX-DEC 781 | -10/Exiles | Learned location of Zion (-6) 813 | -10/Exiles | Met EX-BIN 835 | -10/Exiles | Aligned with FarCom system 837 | -10/Exiles | Given EX-Vault access code 873 | -10/Exiles | Opened EX-Vault 883 | -10/Exiles | Found Prototype Leg 883 | -10/Exiles | Identified Potential Leg 886 | -10/Exiles | Found Potential Leg 906 | -10/Exiles | Warned to stay clear of 0b10 Research branches 963 | -10/Exiles | Discovered new exit (range 14) 998 | -10/Exiles | Left Exiles lab with Potential Leg 998 | -10/Exiles | Entered Mines 998 | -9/Mines | Accompanied by 3 allies 1077 | -9/Mines | Found a damaged Exp. Sensor Array with a note attached 1100 | -9/Mines | Learned Materials terminal intel 1202 | -9/Mines | Discovered new exit (range 6) 1210 | -9/Mines | Entered Materials 1210 | -8/Materials | Accompanied by 1 ally 1210 | -8/Materials | Evolved 4 slots: Propulsion x1, Utility x2, Weapon x1 1211 | -8/Materials | Loaded intel: 12 terminal locations 1626 | -8/Materials | Build established: Skirmisher 1651 | -8/Materials | Self-destructed Last Messages --------------- Rating: 1 Schematic downloaded. 01513_ O-16 Technician: "IFF HANDSHAKE FAILED. SECURING TERMINAL." 01516_ ALERT: Hostiles spotted, dispatching reinforcements to Terminal M008. 01518_ ALERT: Hostiles spotted, dispatching reinforcements to Terminal M006. 01525_ R-06 Scavenger collects Aluminum Leg. 01528_ R-06 Scavenger collects Imp. Ion Engine. 01558_ Acquired 10 matter. 01571_ U-05 Engineer builds a Wall. 01597_ Acquired Imp. Terrain Scanner. 01615_ W-25 Informer destroyed. 01632_ R-06 Scavenger collects Lgt. Deuterium Engine. 01637_ R-06 Scavenger collects Visual Processing Unit. 01638_ W-25 Informer sends out distress signal. 01639_ W-25 Informer destroyed. Map ----- +----------------------------------------------------+ | ?????????????????????????????????????????????????? | | ?????????????????????????????????????????????????? | | ?????????????????????????????????????????????????? | | ?????????????????????????????????????????????????? | | ?????????????????????????????????????????????????? | | ?????????????????????????????????????????????????? | | ?????????????????????????????????????????????????? | | ?????????????????????????????????????????????????? | | ?????????????????????????????????????????????????? | | ?????????????????????????????#????????????????#??? | | ??????????????????????????????????????? ?????????# | | ?????????????????????????????????????##???+#?????? | | ????????????????????????#?????#?????# #??? #?????? | | ????????????????????????????????#????!#??? #?????? | | ????????????? ?? ???????#???????#####+##?# #???#?? | | ???????????##??#??????#?????????# =g!#?# #?????? | | ????????????????? ??????????#???#! ! #?# #?????? | | ??????????? ? ????????#?#???????# ! #?# #????#? | | ???T???????????? ???##????? ??# ### ####### | | #???? ?????? "?????????? ???? # [ + # | | #??????#??"????? ?#???????????# # # """ | | ?? ""??#???" """???#?#?? "????#+##+### # """ | | ?? ????#????????????#?????????+ + """ | | ?? ? ??? """T"""???????????"??# # | | ???????######################## # * | | ??????# / ****%#@ + ####### | | ????? # """"" ** [## """ # #######?????? | | #?????? # """"" ** ## """ # #?#?????????? | | #?? ????# """"" ## """ # #?#????##???? | | #???????# *== ## # #?########### | | ###???### [[% % ########## #? # | | ###????#######+################# %#? % "" # | | #??#?#?#?# =% # / / !# ## """# | | ########## ! # * # ## """ S"# | | g % # """ """ """ # + """ # | | ##+####### # """ """ """?# #? """ #* | | # #?# # """ """ """ # #??? #* | | #### #?####### + #????? # | | ???# #????########+############ #?#??###+### | | ???# #???#?#] #?#?##??## ###### ## | | ?#?#! "T" #?##??# ########## | | ?#?# #?#???#]] [%= | | ??#########?????#]] = ##+####### | | ??????????#?#???#[[ # ######### ## | | ????#?#??#????#?#[[ ####### " """ #?#?????#######? | | ??????##????????#####?????# T """ #??????????????? | | ???????#?????#???????##???# " """ #??????????????? | | ??????????????????????#???# #??????????????# | | ????##???????????#????????#########??????????????? | | | +----------------------------------------------------+ Best States ------------- Heat Dissipation 45 Energy Generation 14 Energy Capacity 275 Matter Stores 300 Matter Capacity 300 Sight Range 16 Terrain Scan Range 16 Terrain Scan Density 10 Armor Coverage 150 Resistance: EM 15 Evasion (%) 63 Recoil Reduction 2 Offensive Hacking 10 Item Schematics ----------------- Datajack | -8/Materials | Scanalyzed Hcp. Storage Unit | -8/Materials | Hacked Robot Schematics ------------------ None Fabricated ------------ Nothing Alien Tech Used ----------------- None Achievements -------------- None Challenges ------------ None Game ------ Seed AnalysisAssembledArmor Manual? 0 Play Time 00:18:17 Cumulative 110.7 hours Start 2024.05.16 @ 18:17:34 End 2024.05.17 @ 16:12:22 Sessions 1 Manual Loads 0 Difficulty Rogue Special Mode None Game No. 86 Rogue 47 Adventurer 32 Explorer 7 Win Type - Total 0 Types 0/0/0/0/0/0/0/0/0 Lore% 28 Gallery% 62 Achievement% 46 Wizard Run 0 Options --------- Layout 2 ASCII 0 Keyboard 0 Movement Numpad Keybinds 0 Fullscreen 2 Font 16/SmallcapsGlow Map View 50x44 Zoom Use 6% Tactical HUD 1 Map Filters NONE Filters NONE Steam SD RUN: c21a9cab-2b13-4b36-b483-1457043b33de